[Event "SVK ECo-C Extraliga 2021-22"]
[Site "Slovakia"]
[Date "2022.06.11"]
[Round "10"]
[White "Lipka, Juraj"]
[Black "Gzib, David"]
[Result "1-0"]
[ECO "A46"]
[WhiteElo "2379"]
[BlackElo "2040"]
[Annotator "TA"]
[PlyCount "109"]
[EventDate "2021.10.21"]
[EventType "team-tourn"]
[EventCountry "SVK"]
[SourceTitle "playchess.com"]
[Source "ChessBase"]
[SourceQuality "1"]
[TimeControl "40/5400+30:1800+30"]

{[%evp 9,109,68,66,63,65,45,44,37,29,15,39,26,34,27,28,33,35,40,151,159,151,139,234,130,130,120,141,139,137,129,191,205,166,178,226,237,250,250,332,320,283,141,151,158,149,156,212,185,158,72,222,199,314,147,145,152,142,129,329,325,478,454,477,453,535,580,596,593,814,804,698,673,1943,1919,1517,1510,29962,29953,29985,29986,29986,29987,29987,29988,29995,29973,29973,29974,29977,29978,29978,29978,29978,29978,29979,29980,29980,29981,29981,29982,29983,29983]} 1. d4 {[%emt 0:00:03]} Nf6 {[%emt 0:00:01]} 2. Nf3 {[%emt 0:00:18]} b5 {[%emt 0:00:09]} 3. e4 {[%emt 0:01:57]} Nxe4 {[%emt 0:03:19]} 4. Bxb5 {[%emt 0:00:44]} c6 {[%emt 0:03:24]} 5. Bd3 {[%emt 0:00:59]} d5 {[%emt 0:00:19]} 6. O-O {[%emt 0:03:56] [#] A46: 1 d4 Nf6 2 Nf3 e6: Torre, London and Colle Systems.} Bf5 $146 {[%emt 0:10:42]} ({Predecessor:} 6... Bg4 7. h3 Bh5 8. Re1 Nd6 9. Bg5 Qb6 10. Nbd2 e6 11. Nb3 Nd7 12. Qe2 h6 {1-0 (25) Voit,D (2343)-Purtseladze,M (2274) Chess.com INT 2020}) 7. Re1 {[%emt 0:04:04]} e6 {[%emt 0:01:43]} 8. Nbd2 {[%emt 0:06:52][%cal Rd2e4] White is slightly better.} Nd6 {[%emt 0:05:26]} 9. Nb3 {[%emt 0:15:21]} Nd7 {[%emt 0:06:18]} 10. Bf4 {[%emt 0:03:40] Black must now prevent Bxd6.} Bxd3 {[%emt 0:11:47]} 11. cxd3 {[%emt 0:01:21]} Be7 {[%emt 0:02:10]} 12. Rc1 {[%emt 0:02:35]} Rc8 {[%emt 0:01:25]} 13. Re2 {[%emt 0:02:16]} g5 {[%emt 0:04:44] [#]} (13... O-O $14) 14. Nxg5 $1 $16 {[%emt 0:18:24][%mdl 512]} Bxg5 {[%emt 0:01:57]} 15. Bxd6 {[%emt 0:00:06][%cal Oe2e6]} Nf6 {[%emt 0:01:32] [#]} (15... Bxc1 {leads to mate.} 16. Rxe6+ $3 {[%mdl 512]}) (15... Nf8 $16) 16. Be5 $1 {[%emt 0:14:15]} Bxc1 {[%emt 0:02:28]} 17. Qxc1 {[%emt 0:01:08]} Rg8 {[%emt 0:01:49]} 18. Rc2 {[%emt 0:00:30]} Nd7 {[%emt 0:20:01]} 19. Rxc6 {[%emt 0:08:08]} Nb6 {[%emt 0:02:42] [#]} (19... Rxc6 $16 20. Qxc6 Kf8) 20. Rc5 $1 $18 {[%emt 0:00:30] aiming for Bc7.} Rxc5 {[%emt 0:01:40]} 21. dxc5 {[%emt 0:00:35]} Nd7 {[%emt 0:01:26]} (21... Nc8 {was worth a try.} 22. g3 Rg6) 22. Bg3 {[%emt 0:02:12]} Qg5 {[%emt 0:04:42]} 23. Qc3 {[%emt 0:02:53]} f5 {[%emt 0:05:23] Threatens to win with ...f4.} 24. c6 {[%emt 0:03:57]} Nb6 {[%emt 0:02:49]} 25. h4 {[%emt 0:03:47]} (25. Qe1 $18 {is more deadly.}) 25... Qg7 {[%emt 0:01:30]} 26. Qe1 {[%emt 0:00:42] White is more active.} Kf7 {[%emt 0:00:49] Strongly threatening ...f4.} 27. Nc5 {[%emt 0:00:19]} Qf6 {[%emt 0:01:13]} (27... e5 $16) 28. Be5 $36 {[%emt 0:01:17][%mdl 2048] White is really pushing.} Qxh4 {[%emt 0:01:15]} 29. Nb7 {[%emt 0:00:41] Really sharp!} (29. Qa5 $142 Qe7 30. Nb3) 29... Nc8 {[%emt 0:00:43]} (29... f4 $16 {might work better.}) 30. c7 {[%emt 0:00:20]} Qg5 {[%emt 0:01:02]} (30... f4 $142) 31. Nd8+ {[%emt 0:00:32]} (31. g3 $18 {and the rest is easy.}) 31... Rxd8 $16 {[%emt 0:00:40]} 32. cxd8=Q {[%emt 0:00:30]} Qxd8 {[%emt 0:00:06][%mdl 4096] Endgame KQB-KQN} 33. Qc1 {[%emt 0:00:16]} Qg8 $2 {[%emt 0:01:07] This costs Black the game.} (33... Ne7 $16 {keeps fighting.}) 34. Qc7+ $18 {[%emt 0:02:22]} Kg6 {[%emt 0:01:09]} (34... Ne7 $142 35. Qxa7 Qc8) 35. a4 {[%emt 0:00:30][%cal Ba2a4,Ba4a5][%mdl 32]} Qf8 {[%emt 0:00:30]} 36. a5 {[%emt 0:00:30]} h5 {[%emt 0:00:30]} 37. g3 {[%emt 0:00:30][%cal Bg2g3,Bg3h4][%mdl 32]} Qg8 {[%emt 0:00:30]} 38. b4 {[%emt 0:00:30]} h4 {[%emt 0:00:30]} 39. gxh4 {[%emt 0:00:30]} Kh5+ {[%emt 0:00:30]} 40. Bg3 {[%emt 0:00:30]} Kg4 {[%emt 0:00:30]} 41. Kg2 {[%emt 0:30:30]} Kh5 {[%emt 0:30:30]} 42. b5 {[%emt 0:00:30]} Kh6 {[%emt 0:00:30]} 43. Kh2 {[%emt 0:00:30] White mates.} Qf8 {[%emt 0:00:30]} 44. b6 {[%emt 0:00:30]} axb6 {[%emt 0:00:30]} 45. axb6 {[%emt 0:00:30]} Nxb6 {[%emt 0:00:30]} 46. Bf4+ {[%emt 0:00:30]} Kh5 {[%emt 0:00:30]} 47. Qxb6 {[%emt 0:00:30]} Qf6 {[%emt 0:00:30]} 48. Qe3 {[%emt 0:00:30]} Qxh4+ {[%emt 0:00:30]} 49. Qh3 {[%emt 0:00:30]} Qxh3+ {[%emt 0:00:30]} 50. Kxh3 {[%emt 0:00:30] KB-K3P} Kg6 {[%emt 0:00:30]} 51. Kh4 {[%emt 0:00:30]} Kf6 {[%emt 0:00:30]} 52. d4 {[%emt 0:00:30]} Kg6 {[%emt 0:00:30]} 53. f3 {[%emt 0:00:30]} Kf6 {[%emt 0:00:30]} 54. Kh5 {[%emt 0:00:30]} Kf7 {[%emt 0:00:30]} 55. Be5 {[%emt 0:00:30] Weighted Error Value: White=0.15 (very precise) /Black=0.41} 1-0

[Event "SVK ECo-C Extraliga 2021-22"]
[Site "Slovakia"]
[Date "2022.06.11"]
[Round "10"]
[White "Jablonicky, Martin"]
[Black "Dovzik, Juri"]
[Result "1-0"]
[ECO "A11"]
[WhiteElo "2377"]
[BlackElo "2277"]
[Annotator "TA"]
[PlyCount "111"]
[EventDate "2021.10.21"]
[EventType "team-tourn"]
[EventCountry "SVK"]
[SourceTitle "playchess.com"]
[Source "ChessBase"]
[SourceQuality "1"]
[TimeControl "40/5400+30:1800+30"]

{[%evp 15,111,16,21,14,23,25,24,0,14,14,45,53,45,49,77,81,79,81,89,68,70,74,139,107,156,158,200,200,200,179,180,192,191,152,243,243,243,243,275,272,273,273,265,265,262,246,248,250,247,244,250,244,258,254,260,121,241,191,157,37,69,41,69,69,61,63,62,67,82,70,58,61,66,69,83,79,88,79,179,176,347,344,355,352,337,325,322,324,477,470,454,446,412,370,435,425,454,446]} 1. Nf3 {[%emt 0:12:46]} d5 {[%emt 0:01:24]} 2. c4 {[%emt 0:00:09]} c6 {[%emt 0:01:08]} 3. g3 {[%emt 0:01:11]} Nf6 {[%emt 0:02:25]} 4. Bg2 {[%emt 0:00:08]} g6 {[%emt 0:00:42]} 5. b3 {[%emt 0:02:46]} Bg7 {[%emt 0:00:43]} 6. Bb2 {[%emt 0:00:06]} O-O {[%emt 0:00:46]} 7. O-O {[%emt 0:00:05]} e6 {[%emt 0:04:42]} 8. d3 {[%emt 0:02:51]} Nbd7 {[%emt 0:00:46]} 9. Nbd2 {[%emt 0:00:08] A11: English Opening: 1...c6.} Re8 {[%emt 0:07:16]} 10. Rc1 {[%emt 0:00:37]} a5 {[%emt 0:01:09]} 11. a3 {[%emt 0:01:13] [#] White has an edge.} Qe7 $146 {[%emt 0:02:32]} ({Predecessor:} 11... Nh5 12. Qc2 Bxb2 13. Qxb2 Qf6 14. d4 Ng7 15. e4 Nf8 16. Rfe1 Qd8 17. Ne5 Nd7 18. Nxd7 Qxd7 {1-0 (24) Kasperek,R (2198)-Sygulski,P (1531) Krakow 2019}) 12. Rc2 {[%emt 0:00:44]} Nh5 {[%emt 0:04:12]} 13. Qa1 {[%emt 0:01:01]} Bxb2 {[%emt 0:00:37]} 14. Qxb2 {[%emt 0:00:11]} f5 {[%emt 0:01:54]} 15. e4 {[%emt 0:00:47]} dxe4 {[%emt 0:03:22]} 16. dxe4 {[%emt 0:00:06]} Qg7 {[%emt 0:05:11]} 17. Qxg7+ {[%emt 0:02:56]} Nxg7 {[%emt 0:00:33]} 18. c5 {[%emt 0:00:29]} Re7 {[%emt 0:01:10]} ({Better is} 18... e5) 19. Re1 {[%emt 0:02:49]} Nf6 {[%emt 0:07:26]} (19... e5 $142) 20. exf5 {[%emt 0:00:53]} gxf5 {[%emt 0:01:26]} 21. Nc4 {[%emt 0:00:08]} Bd7 {[%emt 0:00:51]} 22. Nfe5 {[%emt 0:06:44]} Be8 {[%emt 0:02:52]} 23. Nb6 {[%emt 0:01:20]} Rd8 {[%emt 0:01:35]} 24. Nec4 {[%emt 0:00:41]} Nd5 {[%emt 0:04:58]} (24... e5 $16 25. Nxa5 (25. Nxe5 Ng4 $16) 25... Ne6) 25. Rd2 $18 {[%emt 0:06:41]} (25. Nxa5 $6 Nxb6 26. cxb6 e5) 25... Kf8 {[%emt 0:04:56]} 26. Nxa5 {[%emt 0:04:33]} Nh5 {[%emt 0:03:57]} 27. Nbc4 {[%emt 0:07:59]} Nhf6 {[%emt 0:07:31]} 28. Nd6 {[%emt 0:02:36]} Rb8 {[%emt 0:00:55]} 29. Rde2 {[%emt 0:01:34]} Bf7 {[%emt 0:02:32]} 30. Nac4 {[%emt 0:02:43]} Bg8 {[%emt 0:04:18]} 31. b4 {[%emt 0:01:08]} Rd7 {[%emt 0:06:00]} 32. h3 {[%emt 0:07:17]} Rg7 {[%emt 0:03:03]} 33. Kh2 {[%emt 0:00:46]} h5 {[%emt 0:00:18]} 34. Bxd5 {[%emt 0:00:35]} cxd5 {[%emt 0:01:29]} 35. Ne3 {[%emt 0:04:46] Pair of Knights!} (35. Ne5 $18) 35... Ra8 {[%emt 0:05:20]} (35... Ne4 $16) 36. Nc2 {[%emt 0:02:08]} Ne4 {[%emt 0:02:13] [#]} 37. Nxe4 {[%emt 0:00:12]} (37. Nb5 $1 $16) 37... fxe4 $14 {[%emt 0:00:18]} 38. f3 $1 {[%emt 0:00:35]} Bh7 {[%emt 0:02:18]} 39. fxe4 {[%emt 0:01:36]} Bxe4 {[%emt 0:00:05]} 40. Nd4 {[%emt 0:00:05]} Ke7 {[%emt 0:01:30]} 41. Nb5 {[%emt 0:32:47]} Kd7 {[%emt 0:31:24]} 42. Rf2 {[%emt 0:01:21]} Bd3 {[%emt 0:00:00]} 43. Nd4 {[%emt 0:00:00] [#] Black must now prevent c6+.} Be4 {[%emt 0:00:00]} 44. Re3 {[%emt 0:00:00] White is more active.} e5 {[%emt 0:00:00]} 45. Nb5 {[%emt 0:00:00] Strongly threatening Rf6.} Ke6 {[%emt 0:00:00] Against Rf6+} 46. Rfe2 {[%emt 0:00:00]} Kd7 {[%emt 0:00:43]} (46... h4 $16) 47. Nd6 $18 {[%emt 0:00:00]} b6 $2 {[%emt 0:00:18]} (47... Kc6 48. Ra2 (48. Nxe4 dxe4 49. Ra2 Kd5 $16) 48... Re7) 48. Nxe4 {[%emt 0:00:00]} dxe4 {[%emt 0:00:34]} 49. cxb6 {[%emt 0:00:00][%mdl 4096] Endgame KRR-KRR} Kc6 {[%emt 0:00:06]} 50. Rc3+ {[%emt 0:00:00]} ({Weaker is} 50. Rxe4 Rxa3 51. Rxe5 Kxb6 $18) 50... Kxb6 {[%emt 0:00:05]} 51. Rxe4 {[%emt 0:00:00]} Rg5 {[%emt 0:01:28]} (51... Rd8 $142 52. Rxe5 Rd2+ 53. Kg1 Rf7) 52. Rce3 {[%emt 0:00:00]} Rf5 {[%emt 0:01:02]} 53. Kg2 {[%emt 0:00:00] Inhibits Rf2+.} Raf8 {[%emt 0:00:45] ( -> ...Rf2+)} 54. Re2 {[%emt 0:00:00] Inhibits Rf2+.} (54. Rxe5 $2 {leads to mate.} Rf2+ 55. Kh1 Rf1+ 56. Kh2 R8f2#) 54... Rf3 {[%emt 0:00:11]} 55. Rxe5 {[%emt 0:00:00]} h4 {[%emt 0:00:05]} 56. R5e3 {[%emt 0:00:00] Weighted Error Value: White=0.13 (very precise) /Black=0.24 (precise)} 1-0

[Event "SVK ECo-C Extraliga 2021-22"]
[Site "Slovakia"]
[Date "2022.06.11"]
[Round "10"]
[White "Mikes, Jan"]
[Black "Hros, Roman"]
[Result "0-1"]
[ECO "B20"]
[WhiteElo "2349"]
[BlackElo "2244"]
[Annotator "TA"]
[PlyCount "38"]
[EventDate "2021.10.21"]
[EventType "team-tourn"]
[EventCountry "SVK"]
[SourceTitle "playchess.com"]
[Source "ChessBase"]
[SourceQuality "1"]
[TimeControl "40/5400+30:1800+30"]

{[%evp 9,38,0,2,-73,-71,-289,-300,-300,-298,-373,-381,-613,-605,-858,-868,-1115,-221,-1115,-1114,-1106,-1097,-1205,-1191,-1133,-842,-842,-842,-813,-840,-1014,-806]} 1. e4 {[%emt 1:31:00]} c5 {[%emt 1:31:00][%cal Bc7c5,Bc5b4,Bb4a3][%mdl 32]} 2. b4 {[%emt 0:00:30]} cxb4 {[%emt 0:00:30]} 3. a3 {[%emt 0:00:30]} bxa3 {[%emt 0:00:30]} 4. d4 {[%emt 0:00:30]} e5 {[%emt 0:00:30] [#]} 5. dxe5 $146 {[%emt 0:00:30]} ({Predecessor:} 5. c3 exd4 6. cxd4 Bb4+ 7. Nd2 Qe7 8. Qc2 Nc6 9. Ngf3 d5 10. Bb5 Kf8 11. O-O dxe4 12. Bxc6 bxc6 {½-½ (47) Gurkin,A (2158)-Al Sulaiti,G (2135) Pardubice 2008}) 5... Qa5+ {[%emt 0:00:30]} 6. Nd2 {[%emt 0:00:30] B20: Sicilian: Unusual White 2nd moves.} (6. Bd2 $11 Qxe5 7. Nc3) 6... Nc6 $17 {[%emt 0:00:30][%cal Bb8c6,Bc6b4,Bb4a2,Ba2c1,Bc1e2][%mdl 32] Hoping for ...Qc3.} 7. Ngf3 $2 {[%emt 0:00:30] [#]} (7. Bb2 $17) 7... Qc3 $1 $19 {[%emt 0:00:30]} 8. Ra2 {[%emt 0:00:30] [#] Black has a decisive advantage.} b5 {[%emt 0:00:30] Against Bc4} ({Worse is} 8... Nb4 9. Bc4 $17) 9. Bxb5 {[%emt 0:00:30] aiming for 0-0.} Nb4 {[%emt 0:00:30]} 10. O-O $2 {[%emt 0:00:30]} (10. Bxa3 Nxa2 11. Bxf8 Kxf8 12. O-O) 10... Nxa2 {[%emt 0:00:30]} 11. Nc4 {[%emt 0:00:30]} Nxc1 {[%emt 0:00:30]} 12. Qd5 {[%emt 0:00:30]} Ne2+ {[%emt 0:00:30]} 13. Kh1 {[%emt 0:00:30]} Rb8 {[%emt 0:00:30] And now ...a2 would win. Black is clearly winning.} 14. Ng5 {[%emt 0:00:30]} Nh6 {[%emt 0:00:30]} 15. e6 {[%emt 0:00:30]} fxe6 {[%emt 0:00:30]} 16. Nxe6 {[%emt 0:00:30]} Rxb5 {[%emt 0:00:30]} 17. Nc7+ {[%emt 0:00:30]} Kd8 {[%emt 0:00:30]} 18. Nxb5 {[%emt 0:00:30] [#]} Nf4 $1 {[%emt 0:00:30]} 19. Qg5+ {[%emt 0:00:30]} (19. Nxc3 Nxd5) 19... Be7 {[%emt 0:00:30] White got outplayed after the opening.  Weighted Error Value: White=1.43/Black=0.22 (precise)} 0-1

[Event "SVK ECo-C Extraliga 2021-22"]
[Site "Slovakia"]
[Date "2022.06.11"]
[Round "10"]
[White "Krak, Tomas"]
[Black "Stohl, Igor"]
[Result "1/2-1/2"]
[ECO "B41"]
[WhiteElo "2332"]
[BlackElo "2452"]
[Annotator "TA"]
[PlyCount "24"]
[EventDate "2021.10.21"]
[EventType "team-tourn"]
[EventCountry "SVK"]
[SourceTitle "playchess.com"]
[Source "ChessBase"]
[SourceQuality "1"]
[TimeControl "40/5400+30:1800+30"]

{[%evp 9,24,22,40,38,100,97,99,107,75,61,85,70,126,122,127,119,167]} 1. e4 {[%emt 1:31:00]} c5 {[%emt 1:31:00]} 2. Nf3 {[%emt 0:00:30]} e6 {[%emt 0:00:30]} 3. d4 {[%emt 0:00:30]} cxd4 {[%emt 0:00:30]} 4. Nxd4 {[%emt 0:00:30]} a6 {[%emt 0:00:30]} 5. Qf3 {[%emt 0:00:30] [#]} g6 $146 {[%emt 0:00:30]} ({Predecessor:} 5... b5 6. e5 Qc7 7. Bf4 Bb7 8. Qg3 Ne7 9. Bd3 Ng6 10. Bxg6 hxg6 11. O-O Nc6 12. Nxc6 Qxc6 {0-1 (37) Perez Gormaz,M (2407)-Valenzuela Fuentealba,L (2443) Santiago de Chile 2017}) 6. Nc3 {[%emt 0:00:30] B41: Sicilian: Kan Variation: 5 c4.} Bg7 {[%emt 0:00:30]} ({Black should play} 6... d6 $14) 7. Be3 $16 {[%emt 0:00:30]} Ne7 {[%emt 0:00:30]} 8. O-O-O {[%emt 0:00:30] White is much more active.} Nbc6 {[%emt 0:00:30]} 9. Qg3 {[%emt 0:00:30]} d5 {[%emt 0:00:30]} 10. h4 {[%emt 0:00:30]} e5 {[%emt 0:00:30]} (10... Nxd4 $14 11. Bxd4 Bxd4 12. Rxd4 Nc6) 11. Nxc6 {[%emt 0:00:30]} bxc6 {[%emt 0:00:30]} 12. Bc5 {[%emt 0:00:30]} d4 {[%emt 0:00:30] Weighted Error Value: White=0.05 (flawless) /Black=0.26 (precise)} (12... h5 $16 {is a better defense.}) 1/2-1/2

[Event "SVK ECo-C Extraliga 2021-22"]
[Site "Slovakia"]
[Date "2022.06.11"]
[Round "10"]
[White "Straka Jozef"]
[Black "Zpevak, Pavel"]
[Result "1-0"]
[ECO "E56"]
[WhiteElo "2319"]
[BlackElo "2357"]
[Annotator "TA"]
[PlyCount "195"]
[EventDate "2021.10.21"]
[EventType "team-tourn"]
[EventCountry "SVK"]
[SourceTitle "playchess.com"]
[Source "ChessBase"]
[SourceQuality "1"]
[TimeControl "40/5400+30:1800+30"]

{[%evp 21,195,17,58,34,58,16,27,9,22,17,22,32,32,28,26,11,15,12,17,17,15,0,7,0,4,0,6,6,6,6,4,0,2,0,0,0,8,0,0,0,0,0,8,0,8,0,0,0,8,0,0,0,8,8,29948,29948,29949,29951,29954,29955,29955,29955,29954,8,29959,29960,29961,29961,29962,29964,29963,29965,29964,29965,29965,29967,29969,29969,29969,29970,29970,29972,29973,29975,29975,29974,29973,29974,29976,29975,29975,29975,29974,29975,29975,29976,29978,29979,29979,29980,29980,29978,29980,29979,29980,29980,29980,29981,29981,29980,29982,29981,29981,29980,29982,29977,29983,29984,29984,29985,29985,29985,29985,29986,29986,29987,29987,29987,29987,29986,29986,29987,29987,29988,29989,29988,29988,29989,29989,29989,29989,0,29989,0,29989,29990,29990,29990,29991,29992,29992,4145,29991,29991,29991,29990,29991,29992,29992,29993,29994,29994,29995,29996,29996,29995,29997,29996,29996,29996,29996,29997,29997,29998,29998,29999]} 1. d4 {[%emt 0:00:08]} Nf6 {[%emt 0:00:16]} 2. c4 {[%emt 0:00:04]} e6 {[%emt 0:00:15]} 3. Nc3 {[%emt 0:00:08]} Bb4 {[%emt 0:00:48]} 4. e3 {[%emt 0:00:10]} O-O {[%emt 0:01:05]} 5. Bd3 {[%emt 0:00:06]} d5 {[%emt 0:00:37]} 6. Nf3 {[%emt 0:00:12]} c5 {[%emt 0:04:02]} 7. O-O {[%emt 0:04:01]} Nc6 {[%emt 0:05:47]} 8. a3 {[%emt 0:00:31]} Ba5 {[%emt 0:02:02]} 9. cxd5 {[%emt 0:05:07]} exd5 {[%emt 0:01:27]} 10. dxc5 {[%emt 0:11:16]} Bxc3 {[%emt 0:02:36]} 11. bxc3 {[%emt 0:01:22]} Qa5 {[%emt 0:01:34]} 12. Qc2 {[%emt 0:03:50] E56: Nimzo-Indian: Rubinstein: Main Line: 7...Nc6.} Qxc5 {[%emt 0:01:42]} 13. c4 {[%emt 0:07:11]} (13. a4 $5 {[%cal Rc1a3]}) 13... dxc4 {[%emt 0:11:33] [#]} 14. Bb2 $146 {[%emt 0:04:37] White has an edge.} ({Predecessor:} 14. Qxc4 Qxc4 15. Bxc4 Bg4 16. Bb2 Rac8 17. Rac1 Na5 18. Bd3 Nb3 19. Rxc8 Rxc8 20. Nd4 {0-1 (72) Bunk,W (1984)-Hofstetter,H (2163) Bad Kissingen 2018}) 14... Rd8 {[%emt 0:02:58]} (14... Be6 {is more complex.} 15. Bxf6 gxf6 16. Bxh7+ Kg7) 15. Qxc4 {[%emt 0:16:46]} Qxc4 {[%emt 0:21:46]} 16. Bxc4 {[%emt 0:00:03] A strong pair of Bishops.} Be6 {[%emt 0:01:14]} 17. Bxe6 {[%emt 0:04:41]} fxe6 {[%emt 0:00:25]} 18. Ng5 {[%emt 0:00:39]} e5 {[%emt 0:00:47]} 19. Rfd1 {[%emt 0:04:15]} Rxd1+ {[%emt 0:09:27]} 20. Rxd1 {[%emt 0:00:03]} Re8 {[%emt 0:00:31]} 21. h3 {[%emt 0:07:30]} h6 {[%emt 0:06:40]} 22. Nf3 {[%emt 0:00:14]} Kf7 {[%emt 0:00:58]} 23. g4 {[%emt 0:10:30]} Ke6 {[%emt 0:06:00]} 24. Nh4 {[%emt 0:02:06] Black should prevent Nf5.} Rd8 {[%emt 0:02:30]} 25. Rxd8 {[%emt 0:02:12]} Nxd8 $11 {[%emt 0:00:07][%mdl 4096] Endgame KBN-KNN} 26. Nf5 {[%emt 0:00:08]} Ne8 {[%emt 0:00:30]} 27. f4 {[%emt 0:00:36]} Nf7 {[%emt 0:02:23]} 28. Kf2 {[%emt 0:01:56]} h5 {[%emt 0:02:46]} 29. Ng3 {[%emt 0:07:44]} hxg4 {[%emt 0:02:10]} 30. hxg4 {[%emt 0:00:03]} exf4 {[%emt 0:04:13]} 31. exf4 {[%emt 0:00:15]} Kd5 {[%emt 0:00:26]} 32. Kf3 {[%emt 0:05:55]} g5 {[%emt 0:02:58]} 33. Nh5 {[%emt 0:01:06]} gxf4 {[%emt 0:01:50]} 34. Kxf4 {[%emt 0:00:28]} a5 {[%emt 0:00:53]} 35. g5 {[%emt 0:00:25]} Nxg5 {[%emt 0:00:14]} 36. Kxg5 {[%emt 0:00:04]} Kc4 {[%emt 0:00:17]} 37. Be5 {[%emt 0:01:47] Kf5 would kill now.} Kb3 $2 {[%emt 0:00:02][%mdl 8192] [#] Black is on the road to losing.} (37... Kc5 $11) 38. Kg6 {[%emt 0:00:25]} Kxa3 {[%emt 0:00:22]} 39. Kf7 {[%emt 0:00:02]} b5 {[%emt 0:00:23]} 40. Kxe8 {[%emt 0:01:08]} b4 {[%emt 0:00:05]} 41. Nf4 {[%emt 0:07:02]} Kb3 {[%emt 0:15:23]} 42. Kd7 $2 {[%emt 0:18:00]} (42. Kf7 {mates} Kc4 43. Ke6 Kc5 44. Nd3+ Kc4 45. Nb2+ Kb3 46. Kd5 Kc2 47. Kc4) 42... Kc2 $2 {[%emt 0:04:58][%mdl 8192]} (42... a4 $11) 43. Nd5 {[%emt 0:02:53]} b3 {[%emt 0:09:02]} 44. Ne3+ {[%emt 0:00:18]} Kb1 {[%emt 0:05:20]} 45. Nc4 {[%emt 0:00:15]} a4 {[%emt 0:00:13]} 46. Kc6 {[%emt 0:01:23]} Kc2 {[%emt 0:01:15]} 47. Bb2 {[%emt 0:00:25]} Kd3 {[%emt 0:00:20]} 48. Kb5 {[%emt 0:00:07]} Ke4 {[%emt 0:00:13]} 49. Kxa4 {[%emt 0:00:09]} Kd5 {[%emt 0:00:06]} 50. Kxb3 {[%emt 0:00:47]} Ke4 {[%emt 0:00:07]} 51. Kc3 {[%emt 0:00:48]} Kd5 {[%emt 0:00:21]} 52. Kd3 {[%emt 0:00:17]} Kc5 {[%emt 0:00:16]} 53. Ne3 {[%emt 0:01:29]} Kb5 {[%emt 0:00:13]} 54. Kd4 {[%emt 0:00:18]} Kc6 {[%emt 0:00:11]} 55. Ba3 {[%emt 0:00:55]} Kb5 {[%emt 0:00:11]} 56. Bc5 {[%emt 0:00:47]} Kc6 {[%emt 0:00:07]} 57. Nc4 {[%emt 0:01:39]} Kc7 {[%emt 0:00:18]} 58. Kd5 {[%emt 0:00:38]} Kb7 {[%emt 0:00:11]} 59. Bd6 {[%emt 0:00:53]} Ka7 {[%emt 0:00:11]} 60. Kc6 {[%emt 0:00:35]} Ka8 {[%emt 0:00:08]} 61. Bc5 {[%emt 0:00:42]} Kb8 {[%emt 0:00:05]} 62. Be3 {[%emt 0:00:35]} Ka8 {[%emt 0:00:09]} 63. Nb6+ {[%emt 0:00:33]} Kb8 {[%emt 0:00:12]} 64. Bf4+ {[%emt 0:00:19]} Ka7 {[%emt 0:00:08]} 65. Be5 {[%emt 0:00:28]} Ka6 {[%emt 0:00:10]} 66. Bd6 {[%emt 0:00:45]} Ka7 {[%emt 0:00:06]} 67. Bc7 {[%emt 0:00:12]} Ka6 {[%emt 0:00:08]} 68. Bb8 {[%emt 0:00:15]} Ka5 {[%emt 0:00:04]} 69. Nd5 {[%emt 0:00:50]} Ka4 {[%emt 0:00:23]} 70. Kc5 {[%emt 0:00:21]} Kb3 {[%emt 0:00:17]} 71. Bg3 {[%emt 0:00:44]} Kc2 {[%emt 0:00:16]} 72. Kd4 {[%emt 0:00:29]} Kd2 {[%emt 0:00:21]} 73. Nf4 {[%emt 0:00:38]} Kc2 {[%emt 0:00:09]} 74. Kc4 {[%emt 0:00:17]} Kb2 {[%emt 0:00:36]} 75. Ne2 {[%emt 0:00:37]} Kc2 {[%emt 0:00:11]} 76. Nd4+ {[%emt 0:00:50]} Kd2 {[%emt 0:00:08]} 77. Bf2 {[%emt 0:00:21]} Kd1 {[%emt 0:00:18]} 78. Kc3 {[%emt 0:00:30]} Kc1 {[%emt 0:00:07]} 79. Bg3 {[%emt 0:00:30]} Kd1 {[%emt 0:00:10]} 80. Bh4 {[%emt 0:00:05]} Kc1 {[%emt 0:00:08]} 81. Bg3 {[%emt 0:00:05]} Kd1 {[%emt 0:00:10]} 82. Bh4 {[%emt 0:00:30]} Kc1 {[%emt 0:00:10]} 83. Nc2 {[%emt 0:00:03]} Kd1 {[%emt 0:00:12] [#]} 84. Kd3 $1 {[%emt 0:00:01]} Kc1 {[%emt 0:00:12]} 85. Bf6 {[%emt 0:00:21]} Kd1 {[%emt 0:00:10]} 86. Bc3 {[%emt 0:00:55]} Kc1 {[%emt 0:00:04]} 87. Bd4 {[%emt 0:01:17] White mates.} Kd1 {[%emt 0:00:12]} 88. Be5 {[%emt 0:00:04]} Kc1 {[%emt 0:00:06]} 89. Ne3 {[%emt 0:00:36]} Kb1 {[%emt 0:00:04]} 90. Kc3 {[%emt 0:00:09]} Kc1 {[%emt 0:00:10]} 91. Bf4 {[%emt 0:00:49]} Kb1 {[%emt 0:00:06]} 92. Nc4 {[%emt 0:00:51]} Ka2 {[%emt 0:00:09]} 93. Kc2 {[%emt 0:00:21]} Ka1 {[%emt 0:00:05]} 94. Be3 {[%emt 0:01:23]} Ka2 {[%emt 0:00:04]} 95. Bc1 {[%emt 0:00:17]} Ka1 {[%emt 0:00:06]} 96. Nd2 {[%emt 0:00:17]} Ka2 {[%emt 0:00:06]} 97. Ne4 {[%emt 0:00:10]} Ka1 {[%emt 0:00:51]} 98. Bb2+ {[%emt 0:00:02] Weighted Error Value: White=0.31/Black=0.38} 1-0